bitfinex/quotes_BTCUSD_20260127
["timestamp","ask_amount","ask_price","bid_price","bid_amount"]
[1769539335944,0.03,87913.0,87885.0,0.13563041]
[1769539336146,0.04091676,87916.0,87889.0,0.13563041]
[1769539336442,0.05685919,87937.0,87903.0,0.13563041]
[1769539336639,0.05731196,87937.0,87900.0,0.34018256]
[1769539336824,0.03,87934.0,87900.0,0.13563041]
[1769539337028,0.03,87934.0,87903.0,0.0235612]
[1769539337229,0.03,87934.0,87898.0,0.17376405]
[1769539337230,0.03,87934.0,87907.0,0.0235612]
[1769539337467,0.03,87934.0,87910.0,0.13563041]
[1769539337729,0.03,87933.0,87901.0,0.13563041]
[1769539337943,0.03,87933.0,87905.0,0.13563041]
[1769539338152,0.03,87933.0,87907.0,0.13563041]
[1769539338364,0.03,87933.0,87910.0,0.0235612]
[1769539338562,0.03,87932.0,87912.0,0.0235612]
[1769539338765,0.03,87932.0,87915.0,0.13563041]
[1769539338970,0.03,87932.0,87918.0,0.0235612]
[1769539339194,0.03,87932.0,87918.0,0.15919161]
[1769539339413,0.09822872,87940.0,87918.0,0.13563041]
[1769539339632,0.03,87948.0,87923.0,0.13563041]
[1769539339822,0.00899457,87949.0,87912.0,0.05687398]
[1769539339823,0.03,87942.0,87927.0,0.13563041]
[1769539340030,0.03,87942.0,87928.0,0.0235612]
[1769539340208,0.03,87942.0,87928.0,0.15919161]
[1769539340420,0.03,87942.0,87931.0,0.0235612]
[1769539340610,0.03,87942.0,87934.0,0.13563041]
[1769539340772,0.03,87941.0,87934.0,0.15919161]
[1769539341760,0.03,87940.0,87934.0,0.15910761]
[1769539341974,0.03,87940.0,87917.0,0.0235612]
[1769539342114,0.03,87940.0,87920.0,0.13563041]
[1769539342327,0.00899457,87955.0,87920.0,0.13563041]
[1769539342328,0.05714651,87962.0,87923.0,0.0235612]
[1769539342532,0.05714651,87962.0,87931.0,0.0235612]
[1769539342533,0.01379562,87962.0,87931.0,0.0235612]
[1769539342731,0.0003035,87962.0,87935.0,0.02385946]
[1769539342947,0.0003035,87962.0,87930.0,0.34018256]
[1769539342948,0.0003035,87962.0,87938.0,0.13054995]
[1769539343145,0.0003035,87962.0,87941.0,0.02385946]
[1769539343346,0.0003035,87962.0,87944.0,0.13054995]
[1769539343589,0.0003035,87962.0,87946.0,0.13054995]
[1769539343787,0.0003035,87962.0,87946.0,0.15440941]
[1769539344454,0.03,87963.0,87946.0,0.15440941]
[1769539344854,0.03,87965.0,87946.0,0.15440941]
[1769539344988,0.04799016,87965.0,87946.0,0.15440941]
[1769539345198,0.03,87965.0,87946.0,0.15440941]
[1769539345383,0.03,87963.0,87946.0,0.15440941]
[1769539348639,0.03,87961.0,87946.0,0.02385946]
[1769539348839,0.03,87947.0,87917.0,0.02313624]
[1769539349038,0.04798646,87946.0,87921.0,0.02313624]
[1769539349277,0.04798646,87946.0,87925.0,0.02313624]
[1769539349522,0.01349212,87946.0,87927.0,0.02313624]
[1769539349720,0.01349212,87946.0,87929.0,0.02313624]
[1769539349898,0.01349212,87946.0,87930.0,0.12630185]
[1769539350233,0.01349212,87946.0,87929.0,0.02313624]
[1769539350514,0.03,87950.0,87932.0,0.12630185]
[1769539350887,0.03,87950.0,87932.0,0.14943809]
[1769539351933,0.06085956,87951.0,87932.0,0.14943809]
[1769539352110,0.06535664,87951.0,87932.0,0.14943809]
[1769539352656,0.03,87949.0,87932.0,0.14943809]
[1769539353966,0.03,87949.0,87932.0,0.14544835]
[1769539355217,0.03,87947.0,87910.0,0.34034016]
[1769539355411,0.03,87937.0,87913.0,0.12630185]
[1769539355618,0.03,87937.0,87914.0,0.12630185]
[1769539355816,0.03,87937.0,87911.0,0.11684]
[1769539355817,0.03,87937.0,87917.0,0.02724858]
[1769539356057,0.03,87937.0,87920.0,0.12630185]
[1769539356302,0.03,87935.0,87919.0,0.12630185]
[1769539356628,0.03,87935.0,87921.0,0.12630185]
[1769539356849,0.03,87935.0,87921.0,0.15355043]
[1769539357048,0.03,87935.0,87923.0,0.12630185]
[1769539357251,0.03,87934.0,87923.0,0.12630185]
[1769539358300,0.03,87933.0,87923.0,0.12630185]
[1769539359169,0.15222412,87949.0,87923.0,0.12630185]
[1769539359362,0.03,87937.0,87923.0,0.12630185]
[1769539359788,0.03,87937.0,87912.0,0.02949736]
[1769539359991,0.03,87937.0,87916.0,0.02949736]
[1769539360201,0.03,87937.0,87918.0,0.02949736]
[1769539360409,0.03,87937.0,87919.0,0.12947067]
[1769539360629,0.03,87937.0,87919.0,0.15896803]
[1769539362222,0.00042426,87936.0,87919.0,0.15896803]
[1769539364493,0.03,87936.0,87920.0,0.03174598]
[1769539364696,0.03,87936.0,87911.0,0.11684]
[1769539364697,0.03,87936.0,87923.0,0.12947067]
[1769539365762,0.03,87935.0,87923.0,0.12947067]
[1769539365973,0.03,87935.0,87926.0,0.03174598]
[1769539366180,0.03,87935.0,87928.0,0.16121665]
[1769539366602,0.03,87934.0,87928.0,0.16121665]
[1769539367657,0.03,87945.0,87928.0,0.16121665]
[1769539368111,0.03,87945.0,87914.0,0.03174598]
[1769539368112,0.03,87941.0,87914.0,0.03174598]
[1769539368284,0.03,87941.0,87917.0,0.12947067]
[1769539368626,0.03,87941.0,87919.0,0.12947067]
[1769539369043,0.08685594,87942.0,87919.0,0.12947067]
[1769539369235,0.03,87942.0,87919.0,0.12947067]
[1769539369455,0.03,87942.0,87919.0,0.03174598]
[1769539369683,0.03,87942.0,87920.0,0.12947067]
[1769539370114,0.03,87941.0,87920.0,0.16121665]
[1769539371024,0.03,87942.0,87920.0,0.16121665]
[1769539371446,0.03,87936.0,87920.0,0.16121665]
[1769539372332,0.03,87936.0,87921.0,0.16121665]
[1769539374906,0.05684986,87951.0,87923.0,0.12947067]
[1769539375141,0.6248276,87976.0,87926.0,0.04091676]
[1769539375142,0.0568458,87958.0,87926.0,0.04091676]
[1769539375337,0.05684717,87956.0,87934.0,0.02949736]
[1769539375555,0.05684717,87956.0,87898.0,0.34130269]
[1769539375556,0.11465359,87950.0,87917.0,0.11684]
[1769539375769,0.11465359,87950.0,87921.0,0.02949736]
[1769539375770,0.05685068,87950.0,87921.0,0.02949736]
[1769539375984,0.11465359,87948.0,87925.0,0.02949736]
[1769539376215,0.03,87947.0,87929.0,0.02949736]
[1769539376434,0.03,87947.0,87929.0,0.15497014]
[1769539376900,0.03,87947.0,87930.0,0.02949736]
[1769539377119,0.03,87947.0,87932.0,0.12547278]
[1769539377337,0.03,87947.0,87932.0,0.15497014]
[1769539377547,0.03,87947.0,87933.0,0.02724884]
[1769539377766,0.03,87946.0,87935.0,0.02724884]
[1769539377981,0.03,87936.0,87919.0,0.02724884]
[1769539378203,0.1162524,87937.0,87920.0,0.12547278]
[1769539378418,0.22739937,87951.0,87920.0,0.12547278]
[1769539378419,0.05685394,87945.0,87920.0,0.12547278]
[1769539378623,0.10520728,87944.0,87921.0,0.02724884]
[1769539378821,0.0568553,87943.0,87922.0,0.02724884]
[1769539379155,0.03,87941.0,87922.0,0.15272162]
[1769539381550,0.03,87940.0,87929.0,0.02500035]
[1769539381771,0.03,87940.0,87911.0,0.04091676]
[1769539381772,0.03,87940.0,87930.0,0.12547278]
[1769539381989,0.03,87940.0,87930.0,0.15047313]
[1769539382207,0.03,87939.0,87930.0,0.15047313]
[1769539382932,0.11684,87952.0,87930.0,0.02500035]
[1769539383138,0.03,87953.0,87934.0,0.02500035]
[1769539383347,0.1307065,87951.0,87936.0,0.02500035]
[1769539383575,0.03,87944.0,87914.0,0.12547278]
[1769539383811,0.03,87940.0,87918.0,0.12547278]
[1769539384024,0.03,87938.0,87921.0,0.02500035]
[1769539384194,0.03,87938.0,87924.0,0.12547278]
[1769539384434,0.03,87938.0,87911.0,0.04091676]
[1769539384435,0.03,87938.0,87926.0,0.15047313]
[1769539385033,0.03,87945.0,87926.0,0.15047313]
[1769539385238,0.08685397,87945.0,87927.0,0.15047313]
[1769539385733,0.09060009,87951.0,87927.0,0.15047313]
[1769539385734,0.05685289,87947.0,87927.0,0.15047313]
[1769539385857,0.05685345,87946.0,87927.0,0.15047313]
[1769539386476,0.05837734,87946.0,87927.0,0.15047313]
[1769539386686,0.00152389,87945.0,87927.0,0.15047313]
[1769539387362,0.03,87943.0,87927.0,0.15047313]
[1769539387678,0.03,87941.0,87927.0,0.15047313]
[1769539388103,0.03,87941.0,87929.0,0.12663787]
[1769539388323,0.03,87941.0,87932.0,0.02499999]
[1769539388521,0.05684642,87957.0,87936.0,0.02499999]
[1769539388522,0.03,87955.0,87936.0,0.02499999]
[1769539388752,0.03,87951.0,87937.0,0.15163786]
[1769539388940,0.03,87949.0,87937.0,0.15163786]
[1769539389080,0.03,87947.0,87937.0,0.15163786]
[1769539389308,0.03,87941.0,87911.0,0.12663787]
[1769539389683,0.03,87939.0,87916.0,0.02499999]
[1769539389886,0.03,87939.0,87919.0,0.12663787]
[1769539390122,0.03,87939.0,87922.0,0.02499999]
[1769539390332,0.03,87939.0,87923.0,0.12663787]
[1769539390517,0.03,87946.0,87925.0,0.12663787]
[1769539390712,0.03,87944.0,87925.0,0.15163786]
[1769539390929,0.03,87942.0,87925.0,0.15163786]
[1769539391151,0.03,87940.0,87925.0,0.15163786]
[1769539391562,0.03,87940.0,87920.0,0.27215377]
[1769539391563,0.03,87940.0,87931.0,0.12663787]
[1769539391876,0.05684944,87952.0,87935.0,0.12663787]
[1769539392096,0.03,87950.0,87936.0,0.12663787]
[1769539392328,0.11684,87963.0,87944.0,0.12663787]
[1769539392544,0.11385588,87962.0,87948.0,0.12663787]
[1769539392764,0.11684,87963.0,87950.0,0.13990099]
[1769539392765,0.11385588,87961.0,87950.0,0.13990099]
[1769539392998,0.11385588,87960.0,87950.0,0.13990099]
[1769539393221,0.03,87958.0,87950.0,0.13990099]
[1769539393465,0.03,87956.0,87942.0,0.02326312]
[1769539393707,0.03,87954.0,87945.0,0.12547278]
[1769539393939,0.03,87952.0,87945.0,0.12547278]
[1769539395050,0.11684,87963.0,87921.0,0.12547278]
[1769539395051,0.03,87940.0,87921.0,0.12547278]
[1769539395262,0.11944901,87945.0,87921.0,0.12547278]
[1769539395463,0.02258962,87944.0,87924.0,0.02326312]
[1769539395681,0.02258962,87944.0,87926.0,0.02326312]
[1769539395856,0.02258962,87944.0,87927.0,0.12547278]
[1769539396071,0.03,87943.0,87927.0,0.12547278]
[1769539399461,0.05258962,87939.0,87918.0,0.12547278]
[1769539399895,0.05258962,87939.0,87920.0,0.12547278]
[1769539400111,0.05258962,87939.0,87922.0,0.1487359]
[1769539400750,0.05258962,87939.0,87923.0,0.02326312]
[1769539400962,0.05258962,87939.0,87924.0,0.12547278]
[1769539402510,0.05258962,87939.0,87924.0,0.12538878]
[1769539405345,0.11761418,87946.0,87918.0,0.02250411]
[1769539405346,0.03,87938.0,87918.0,0.02250411]
[1769539405523,0.03,87938.0,87922.0,0.02250411]
[1769539405844,0.03,87938.0,87925.0,0.13709588]
[1769539406256,0.03,87937.0,87925.0,0.13709588]
[1769539407504,0.03,87944.0,87927.0,0.11459177]
[1769539407775,0.03,87942.0,87929.0,0.11459177]
[1769539407983,0.03,87940.0,87929.0,0.13709588]
[1769539408740,0.09060009,87955.0,87923.0,0.02250411]
[1769539408942,0.03,87952.0,87927.0,0.02250411]
[1769539409216,0.03,87950.0,87931.0,0.02250411]
[1769539409418,0.03,87948.0,87934.0,0.13709588]
[1769539409632,0.02324784,87954.0,87917.0,0.04091676]
[1769539409633,0.03,87946.0,87935.0,0.02250411]
[1769539409915,0.03,87946.0,87936.0,0.11459177]
[1769539410082,0.03,87946.0,87936.0,0.13709588]
[1769539410724,0.03,87953.0,87936.0,0.13709588]
[1769539410929,0.02324784,87954.0,87936.0,0.11459177]
[1769539410930,0.03,87951.0,87936.0,0.11459177]
[1769539411077,0.0002679,87954.0,87920.0,0.3400519]
[1769539411078,0.11381561,87950.0,87925.0,0.11459177]
[1769539411274,0.0002679,87954.0,87921.0,0.05686887]
[1769539411275,0.11381561,87949.0,87928.0,0.02250411]
[1769539411477,0.0002679,87954.0,87932.0,0.02250411]
[1769539411796,0.0002679,87954.0,87936.0,0.02250411]
[1769539411797,0.11380629,87953.0,87936.0,0.02250411]
[1769539411999,0.11380629,87952.0,87939.0,0.11459177]
[1769539412214,0.22733982,87975.0,87932.0,0.02250411]
[1769539412406,0.0004,87984.0,87946.0,0.11459177]
[1769539412407,0.11684,87980.0,87946.0,0.11459177]
[1769539412609,0.11684,87980.0,87940.0,0.3400519]
[1769539412610,0.01377532,87974.0,87948.0,0.11459177]
[1769539412924,0.11115439,87972.0,87952.0,0.11459177]
[1769539413127,0.03,87971.0,87955.0,0.02250411]
[1769539413347,0.03,87971.0,87956.0,0.13709588]
[1769539414107,0.03,87970.0,87956.0,0.13709588]
[1769539414333,0.03,87967.0,87940.0,0.02250411]
[1769539414509,0.03,87958.0,87940.0,0.02250411]
[1769539414713,0.05297994,87958.0,87940.0,0.13709588]
[1769539414947,0.05297994,87958.0,87940.0,0.11459177]
[1769539415154,0.05297994,87958.0,87942.0,0.11459177]
[1769539415357,0.05297994,87958.0,87920.0,0.3400519]
[1769539415358,0.11397487,87957.0,87919.0,0.02732]
[1769539415564,0.11397487,87935.0,87919.0,0.02732]
[1769539415771,0.04091676,87953.0,87919.0,0.02732]
[1769539415772,0.11397487,87929.0,87919.0,0.02732]
[1769539415966,0.02297994,87928.0,87919.0,0.02722741]
[1769539416519,0.02297994,87928.0,87910.0,0.11459177]
[1769539416817,0.14397487,87927.0,87910.0,0.11459177]
[1769539417016,0.03,87925.0,87910.0,0.11459177]
[1769539417227,0.05297994,87925.0,87910.0,0.11459177]
[1769539418304,0.03,87924.0,87915.0,0.11459177]
[1769539419271,0.03,87929.0,87915.0,0.11459177]
[1769539419473,0.05297994,87929.0,87915.0,0.11459177]
[1769539420697,0.03,87926.0,87907.0,0.11459177]
[1769539420922,0.03,87924.0,87907.0,0.11459177]
[1769539421960,0.17084028,87927.0,87899.0,0.11459177]
[1769539421961,0.02297994,87920.0,87899.0,0.11459177]
[1769539422161,0.03,87915.0,87899.0,0.11459177]
[1769539422405,0.05297994,87915.0,87899.0,0.11459177]
[1769539423699,0.03,87912.0,87890.0,0.11459177]
[1769539423925,0.03,87912.0,87872.0,0.04091676]
[1769539423926,0.05297994,87910.0,87892.0,0.11459177]
[1769539424588,0.03,87906.0,87887.0,0.11684]
[1769539424802,0.05297994,87904.0,87889.0,0.11483057]
[1769539425045,0.03,87902.0,87889.0,0.11483057]
[1769539425253,0.03,87900.0,87889.0,0.11459177]
[1769539425990,0.02297994,87928.0,87890.0,0.02250411]
[1769539426196,0.03,87921.0,87894.0,0.02250411]
[1769539426396,0.03,87921.0,87897.0,0.11459177]
[1769539426597,0.03,87921.0,87890.0,0.34034885]
[1769539426598,0.11688,87943.0,87892.0,0.11459177]
[1769539426800,0.02297994,87929.0,87895.0,0.02250411]
[1769539427002,0.13639959,87928.0,87898.0,0.11459177]
[1769539427246,0.03,87926.0,87902.0,0.11459177]
[1769539427450,0.05297994,87926.0,87893.0,0.11459177]
[1769539427672,0.05297994,87926.0,87896.0,0.02250411]
[1769539427823,0.05297994,87926.0,87898.0,0.02250411]
[1769539428033,0.05297994,87926.0,87892.0,0.02250411]
[1769539428231,0.05297994,87926.0,87894.0,0.02250411]
[1769539428435,0.05297994,87926.0,87896.0,0.02250411]
[1769539428695,0.05297994,87926.0,87899.0,0.11459177]
[1769539428812,0.05297994,87926.0,87901.0,0.11459177]
[1769539429015,0.03,87925.0,87903.0,0.11459177]
[1769539429259,0.03,87923.0,87905.0,0.11459177]
[1769539429455,0.03,87923.0,87905.0,0.13709588]
[1769539430440,0.03,87921.0,87905.0,0.11459177]
[1769539430646,0.03,87917.0,87905.0,0.11459177]
[1769539431338,0.03,87910.0,87884.0,0.11459177]
[1769539431524,0.05297994,87910.0,87888.0,0.11459177]
[1769539431728,0.05297994,87910.0,87890.0,0.11459177]
[1769539431969,0.05297994,87910.0,87885.0,0.11688]
[1769539431970,0.05297994,87910.0,87892.0,0.13709588]
[1769539433217,0.05297994,87910.0,87894.0,0.11459177]
[1769539433388,0.05297994,87909.0,87894.0,0.11459177]
[1769539433736,0.05297994,87909.0,87889.0,0.11688]
[1769539433737,0.11435808,87905.0,87889.0,0.11688]
[1769539433976,0.03,87899.0,87889.0,0.11688]
[1769539434337,0.03,87899.0,87889.0,0.22791348]
[1769539434914,0.03,87899.0,87890.0,0.11103348]
[1769539435113,0.03,87905.0,87890.0,0.11103348]
[1769539435544,0.05435316,87905.0,87890.0,0.11103348]
[1769539436932,0.02435316,87902.0,87886.0,0.02469924]
[1769539437148,0.08145226,87903.0,87886.0,0.02469924]
[1769539437149,0.05435316,87900.0,87886.0,0.11688]
[1769539437790,0.05435316,87900.0,87886.0,0.22791348]
[1769539437994,0.03,87900.0,87886.0,0.22791348]
[1769539438207,0.05435316,87895.0,87886.0,0.11688]
[1769539439489,0.05687994,87905.0,87883.0,0.000344]
[1769539439490,0.03,87892.0,87883.0,0.000344]
[1769539441478,0.03,87885.0,87873.0,0.11103348]
[1769539441785,0.03,87883.0,87873.0,0.11103348]
[1769539442080,0.05435316,87883.0,87873.0,0.11103348]
[1769539442423,0.05435316,87883.0,87865.0,0.11103348]
[1769539442628,0.03,87881.0,87865.0,0.11103348]
[1769539442827,0.03,87877.0,87865.0,0.11103348]
[1769539443641,0.03,87875.0,87864.0,0.11688]
[1769539443854,0.05435316,87875.0,87862.0,0.0003434]
[1769539444050,0.05435316,87873.0,87862.0,0.0003434]
[1769539444257,0.03,87871.0,87862.0,0.0003434]
[1769539444461,0.03,87869.0,87862.0,0.0003434]
[1769539444989,0.11586799,87895.0,87864.0,0.02469924]
[1769539445188,0.02435316,87893.0,87866.0,0.02469924]
[1769539445391,0.03,87881.0,87867.0,0.11103348]
[1769539445596,0.03,87877.0,87862.0,0.0003434]
[1769539445772,0.05435316,87877.0,87862.0,0.11137688]
[1769539446996,0.03,87872.0,87862.0,0.0003434]
[1769539447246,0.03,87868.0,87862.0,0.0003434]
[1769539448218,0.03,87868.0,87853.0,0.11143348]
[1769539449148,0.03,87866.0,87853.0,0.11143348]
[1769539449998,0.03,87866.0,87854.0,0.02469924]
[1769539450200,0.03,87865.0,87857.0,0.11103348]
[1769539450776,0.03,87865.0,87857.0,0.10103348]
[1769539451171,0.03,87875.0,87859.0,0.11103348]
[1769539451500,0.03,87875.0,87853.0,0.0004]
[1769539451501,0.03,87875.0,87857.0,0.02469924]
[1769539451703,0.03,87875.0,87859.0,0.02469924]
[1769539451865,0.03,87875.0,87860.0,0.13573272]
[1769539452064,0.03,87881.0,87860.0,0.13573272]
[1769539452270,0.03,87874.0,87860.0,0.13573272]
[1769539452895,0.02044485,87880.0,87860.0,0.13573272]
[1769539453300,0.03,87879.0,87860.0,0.13573272]
[1769539453918,0.03,87877.0,87860.0,0.13573272]
[1769539454561,0.03,87877.0,87861.0,0.02469924]
[1769539454773,0.03,87877.0,87862.0,0.11103348]
[1769539454946,0.03,87876.0,87862.0,0.11103348]
[1769539455909,0.03,87877.0,87862.0,0.11103348]
[1769539456804,0.21059905,87888.0,87862.0,0.11103348]
[1769539457006,0.03,87878.0,87862.0,0.11103348]
[1769539457468,0.03,87878.0,87862.0,0.138282]
[1769539458927,0.08689718,87878.0,87862.0,0.138282]
[1769539459167,0.03,87878.0,87862.0,0.138282]
[1769539459549,0.0868972,87878.0,87862.0,0.138282]
[1769539459750,0.03,87876.0,87862.0,0.138282]
[1769539460733,0.0568972,87878.0,87876.0,0.01]
[1769539460935,0.0568972,87878.0,87876.0,0.00873499]
[1769539461138,0.0568972,87878.0,87876.0,0.00768054]
[1769539461344,0.11346747,87877.0,87876.0,0.00662584]
[1769539461540,0.17036517,87877.0,87876.0,0.0057819]
[1769539461772,0.03,87874.0,87862.0,0.138282]
[1769539462182,0.03,87872.0,87862.0,0.138282]
[1769539463072,0.03,87872.0,87862.0,0.138198]
[1769539463275,0.05689779,87877.0,87862.0,0.138198]
[1769539463276,0.03,87871.0,87862.0,0.138198]
[1769539464299,0.05689842,87876.0,87862.0,0.138198]
[1769539464300,0.03,87870.0,87862.0,0.138198]
[1769539465303,0.03,87869.0,87862.0,0.138198]
[1769539466306,0.03,87877.0,87862.0,0.138198]
[1769539466499,0.03,87875.0,87862.0,0.138198]
[1769539466735,0.03,87873.0,87862.0,0.138198]
[1769539466941,0.03,87871.0,87862.0,0.138198]
[1769539467129,0.03,87869.0,87862.0,0.138198]
[1769539467310,0.03,87867.0,87863.0,0.02724852]
[1769539467513,0.03,87867.0,87864.0,0.14592838]
[1769539468059,0.13597696,87883.0,87866.0,0.11867986]
[1769539468264,0.08647286,87892.0,87853.0,0.0004]
[1769539468265,0.24971521,87882.0,87867.0,0.11867986]
[1769539468481,0.14373825,87881.0,87870.0,0.02724852]
[1769539468664,0.03,87879.0,87870.0,0.02624856]
[1769539468873,0.03,87877.0,87870.0,0.02474851]
[1769539469048,0.11373825,87878.0,87870.0,0.02474851]
[1769539469049,0.03,87875.0,87870.0,0.14217822]
[1769539469248,0.03,87873.0,87870.0,0.02688844]
[1769539469472,0.03,87871.0,87870.0,0.02563811]
[1769539469666,0.03,87871.0,87870.0,0.02438768]
[1769539469667,0.14373825,87871.0,87870.0,0.02438768]
[1769539469921,0.14373825,87871.0,87870.0,0.02288705]
[1769539470136,0.14373825,87871.0,87870.0,0.04482111]
[1769539470391,0.14373825,87871.0,87870.0,0.04357038]
[1769539470612,0.14373825,87871.0,87870.0,0.04181919]
[1769539470830,0.14373825,87871.0,87870.0,0.04031803]
[1769539471012,0.14373825,87871.0,87870.0,0.03931718]
[1769539471204,0.08689253,87885.0,87870.0,0.03881673]
[1769539471431,0.03,87883.0,87870.0,0.03781579]
[1769539471664,0.03,87883.0,87870.0,0.03681479]
[1769539471833,0.08689404,87883.0,87870.0,0.03531318]
[1769539472035,0.03,87879.0,87870.0,0.03406173]
[1769539472238,0.03,87873.0,87870.0,0.03255988]
[1769539472444,0.03,87873.0,87870.0,0.03130823]
[1769539472672,0.03,87873.0,87870.0,0.03030685]
[1769539472821,0.03,87873.0,87870.0,0.0293054]
[1769539473166,0.09113605,87881.0,87870.0,0.02318443]
[1769539473354,0.03,87880.0,87864.0,0.11867986]
[1769539473574,0.03,87880.0,87864.0,0.14211468]
[1769539473974,0.03,87878.0,87864.0,0.11867986]
[1769539477281,0.03,87878.0,87859.0,0.11867986]
[1769539477452,0.03,87876.0,87859.0,0.14211468]
[1769539479404,0.03,87872.0,87853.0,0.0004]
[1769539479594,0.34069238,87890.0,87854.0,0.11867986]
[1769539479797,0.02275717,87873.0,87854.0,0.11867986]
[1769539479993,0.03,87870.0,87854.0,0.11867986]
[1769539480196,0.03,87868.0,87853.0,0.02383482]
[1769539481181,0.03,87868.0,87854.0,0.14211468]
[1769539481366,0.03,87867.0,87854.0,0.14211468]
[1769539481565,0.03,87867.0,87855.0,0.02343482]
[1769539481779,0.03,87867.0,87858.0,0.11867986]
[1769539481986,0.03,87867.0,87859.0,0.02343482]
[1769539482189,0.03,87867.0,87859.0,0.14211468]
[1769539482332,0.03,87866.0,87859.0,0.14211468]
[1769539483399,0.03,87865.0,87859.0,0.14211468]
[1769539484422,0.03,87864.0,87859.0,0.14211468]
[1769539485173,0.27257131,87880.0,87855.0,0.27257131]
[1769539485174,0.02275717,87888.0,87860.0,0.02343482]
[1769539485446,0.03,87882.0,87870.0,0.27257131]
[1769539485629,0.03,87880.0,87866.0,0.14211468]
[1769539485835,0.03,87878.0,87870.0,0.27257131]
[1769539485996,0.03,87876.0,87870.0,0.27257131]
[1769539486209,0.03,87874.0,87870.0,0.27257131]
[1769539486436,0.03,87872.0,87866.0,0.14211468]
[1769539486637,0.03,87872.0,87861.0,0.11867986]
[1769539486840,0.03,87870.0,87861.0,0.11867986]
[1769539487789,0.03,87875.0,87860.0,0.27257131]
[1769539487919,0.03,87873.0,87860.0,0.27257131]
[1769539488122,0.03,87871.0,87858.0,0.11696]
[1769539488776,0.03,87869.0,87858.0,0.11696]
[1769539489382,0.03,87869.0,87859.0,0.27257131]
[1769539489593,0.03,87867.0,87858.0,0.11696]
[1769539489932,0.03,87865.0,87858.0,0.11696]
[1769539490352,0.05689338,87884.0,87860.0,0.02343482]
[1769539490535,0.17088722,87883.0,87863.0,0.11867986]
[1769539490780,0.03,87881.0,87864.0,0.02343482]
[1769539490989,0.02275717,87881.0,87864.0,0.14211468]
[1769539491405,0.11814069,87890.0,87870.0,0.27257131]
[1769539491582,0.02275717,87889.0,87871.0,0.11867986]
[1769539491738,0.03,87887.0,87871.0,0.11867986]
[1769539492465,0.03,87887.0,87870.0,0.29600613]
[1769539492466,0.11814069,87910.0,87877.0,0.27257131]
[1769539492674,0.01516479,87909.0,87892.0,0.14211468]
[1769539492903,0.03,87908.0,87892.0,0.14195694]
[1769539493131,0.03,87908.0,87892.0,0.14164146]
[1769539493342,0.16780239,87908.0,87892.0,0.14132598]
[1769539495358,0.03,87907.0,87893.0,0.02262664]
[1769539495731,0.03,87907.0,87893.0,0.13510977]
[1769539496372,0.03,87906.0,87893.0,0.13510977]
[1769539497480,0.03,87905.0,87893.0,0.13510977]
[1769539498616,0.03,87904.0,87893.0,0.13510977]
[1769539498856,0.03,87904.0,87896.0,0.02262664]
[1769539499044,0.03,87904.0,87897.0,0.13466149]
[1769539499194,0.03,87904.0,87897.0,0.13422583]
[1769539499384,0.03,87904.0,87897.0,0.11232541]
[1769539499586,0.03,87903.0,87897.0,0.11232541]
[1769539500640,0.03,87911.0,87897.0,0.11232541]
[1769539500941,0.03,87911.0,87901.0,0.11248313]
[1769539501491,0.03,87911.0,87903.0,0.13510977]
[1769539501693,0.03,87910.0,87903.0,0.13510977]
[1769539502043,0.03,87910.0,87905.0,0.11248313]
[1769539502243,0.03,87910.0,87907.0,0.11248313]
[1769539502452,0.02395355,87924.0,87907.0,0.11248313]
[1769539502654,0.11823192,87928.0,87908.0,0.02262664]
[1769539502867,0.03,87923.0,87908.0,0.02262664]
[1769539503065,0.03,87921.0,87907.0,0.11248313]
[1769539504151,0.03,87922.0,87907.0,0.11248313]
[1769539505512,0.0002989,87931.0,87911.0,0.11248313]
[1769539505713,0.0002989,87931.0,87913.0,0.13510977]
[1769539505714,0.11333377,87930.0,87913.0,0.13510977]
[1769539505949,0.11333377,87929.0,87913.0,0.13510977]
[1769539506158,0.0808176,87930.0,87913.0,0.13510977]
[1769539506352,0.02395355,87929.0,87913.0,0.13510977]
[1769539506730,0.056865,87928.0,87913.0,0.13510977]
[1769539506909,0.02395355,87929.0,87913.0,0.13510977]
[1769539507108,0.0002989,87931.0,87913.0,0.13510977]
[1769539507313,0.0002989,87931.0,87915.0,0.11248313]
[1769539507515,0.0002989,87931.0,87915.0,0.11232537]
[1769539507732,0.0002989,87931.0,87920.0,0.38505444]
[1769539507952,0.0002989,87931.0,87920.0,0.11248313]
[1769539508396,0.0002989,87931.0,87921.0,0.02262664]
[1769539508733,0.11823192,87943.0,87908.0,0.11692]
[1769539508734,0.02395355,87948.0,87922.0,0.11248313]
[1769539508877,0.13716678,87947.0,87926.0,0.11248313]
[1769539509081,0.02395355,87938.0,87912.0,0.02262664]
[1769539509303,0.02395355,87938.0,87910.0,0.27257131]
[1769539509304,0.05686101,87934.0,87915.0,0.13510977]
[1769539509531,0.08081341,87936.0,87916.0,0.02262664]
[1769539509735,0.02395355,87936.0,87917.0,0.11248313]
[1769539509951,0.02395355,87936.0,87917.0,0.11232536]
[1769539510312,0.02395355,87936.0,87919.0,0.11248313]
[1769539510615,0.02395355,87936.0,87919.0,0.13510977]
[1769539511739,0.02395355,87932.0,87910.0,0.22598663]
[1769539511939,0.02395355,87918.0,87892.0,0.02262664]
[1769539512147,0.11823192,87918.0,87894.0,0.11248313]
[1769539512351,0.27257131,87920.0,87896.0,0.11248313]
[1769539512352,0.02395355,87915.0,87896.0,0.11248313]
[1769539512926,0.02395355,87914.0,87896.0,0.11248313]
[1769539513131,0.27257131,87910.0,87895.0,0.11688]
[1769539513466,0.02395355,87908.0,87895.0,0.11688]
[1769539513672,0.02395355,87908.0,87896.0,0.11248313]
[1769539515565,0.03,87907.0,87896.0,0.10248313]
[1769539515946,0.04721855,87907.0,87886.0,0.0002989]
[1769539516140,0.03,87903.0,87886.0,0.0002989]
[1769539516456,0.11823192,87904.0,87886.0,0.0002989]
[1769539516457,0.05395355,87901.0,87886.0,0.0002989]
[1769539517079,0.05395355,87901.0,87887.0,0.11248313]
[1769539519269,0.03,87900.0,87891.0,0.11248313]